bitfinex-derivatives/quotes_SOLF0:USTF0_20250509
["timestamp","ask_amount","ask_price","bid_price","bid_amount"]
[1746770603642,36.3967,162.98,162.89,30.78]
[1746770605942,36.3967,162.98,162.94,6.138]
[1746770606138,30.26,162.98,162.89,30.78]
[1746770606746,4.0671,162.99,162.89,40.56610009]
[1746770607049,30.26,163.0,162.9,2.0217]
[1746770607247,30.26,163.0,162.91,30.24]
[1746770607747,30.26,163.0,162.99,6.1362]
[1746770609748,5.8721,163.03,163.02,6.1351]
[1746770610744,3.9662,163.03,163.02,6.1351]
[1746770612546,30.24,163.06,163.05,6.1337]
[1746770615751,30.24,163.06,163.04,6.1343]
[1746770617253,30.24,163.06,163.02,1.0]
[1746770618049,30.24,163.06,163.03,6.1344]
[1746770618245,30.24,163.06,163.02,1.0]
[1746770618551,36.3736,163.06,163.02,1.0]
[1746770618746,30.24,163.06,163.02,1.0]
[1746770619149,36.3737,163.06,163.02,7.1348]
[1746770619355,30.24,163.06,163.02,1.0]
[1746770619656,30.24,163.06,163.04,6.1341]
[1746770620151,6.1326,163.09,163.05,6.1339]
[1746770620358,32.2436,163.1,163.02,1.0]
[1746770622458,6.1346,163.04,163.02,1.0]
[1746770624058,6.1341,163.05,163.02,1.0]
[1746770624959,6.1343,163.04,163.02,1.0]
[1746770625858,6.1341,163.05,163.02,1.0]
[1746770626158,30.3,163.08,163.02,1.0]
[1746770626354,6.1346,163.04,163.02,1.0]
[1746770627858,6.1347,163.03,163.02,1.0]
[1746770628557,3.854,163.05,162.97,6.1366]
[1746770628558,6.1358,163.01,162.97,6.1366]
[1746770628755,30.06,163.04,162.97,6.1366]
[1746770628952,1.9461,163.03,162.97,6.1366]
[1746770629155,6.1359,163.0,162.97,6.1366]
[1746770629763,6.1355,163.01,162.98,6.1366]
[1746770630966,6.1359,163.0,162.95,60.28]
[1746770631162,30.22,163.02,162.95,60.28]
[1746770631757,30.22,163.02,162.86,542.9621]
[1746770631956,30.22,163.02,162.92,29.94]
[1746770632263,6.1371,162.97,162.94,6.1378]
[1746770632462,29.94,163.0,162.92,29.94]
[1746770632864,6.1374,162.96,162.93,6.1385]
[1746770633165,29.9,162.96,162.86,560.58]
[1746770633361,4.0739,162.95,162.9,6.1394]
[1746770633764,4.0739,162.95,162.86,560.58]
[1746770633956,29.9,162.96,162.86,560.58]
[1746770635166,29.9,162.96,162.94,6.1378]
[1746770635368,29.94,162.97,162.94,6.1378]
[1746770636167,29.94,162.97,162.95,6.1377]
[1746770636364,29.94,162.97,162.9,29.92]
[1746770636861,29.94,162.97,162.86,530.68]
[1746770637067,388.855,162.96,162.81,35.905]
[1746770637366,388.855,162.96,162.81,31.8646]
[1746770637868,6.1407,162.87,162.81,29.96]
[1746770638274,6.1411,162.86,162.82,6.1423]
[1746770638477,2.025,162.88,162.82,6.1423]
[1746770638975,2.025,162.88,162.78,29.88]
[1746770639376,8.1654,162.88,162.78,29.88]
[1746770639877,8.1654,162.88,162.83,6.142]
[1746770640175,8.1654,162.88,162.78,29.88]
[1746770640677,8.1654,162.88,162.84,6.1418]
[1746770641779,6.1408,162.87,162.84,6.1418]
[1746770642180,2.025,162.88,162.78,29.88]
[1746770642477,2.025,162.88,162.77,564.3018]
[1746770642778,2.025,162.88,162.78,29.76]
[1746770643284,6.1421,162.84,162.77,34.0218]
[1746770643579,29.96,162.85,162.76,29.74]
[1746770643779,6.1434,162.8,162.76,6.1448]
[1746770643977,29.96,162.85,162.74,29.76]
[1746770645185,6.1434,162.8,162.76,6.1446]
[1746770646078,29.96,162.81,162.74,29.76]
[1746770646281,29.7,162.85,162.74,31.7381]
[1746770646687,29.98,162.86,162.74,31.7381]
[1746770647184,2.0787,162.89,162.74,31.7381]
[1746770647384,2.0787,162.89,162.79,9.78610009]
[1746770647585,29.98,162.9,162.8,63.5905]
[1746770648185,29.98,162.9,162.79,39.46610009]
[1746770648487,2.0335,162.89,162.79,29.68]
[1746770648679,6.1407,162.88,162.79,29.68]
[1746770648881,31.6935,162.89,162.79,29.68]
[1746770649186,31.6935,162.89,162.83,6.1419]
[1746770649187,6.1408,162.87,162.83,6.1419]
[1746770649685,31.6935,162.89,162.79,29.68]
[1746770649884,6.1406,162.88,162.79,29.68]
[1746770650380,6.1408,162.87,162.83,6.142]
[1746770650578,31.6935,162.89,162.83,6.142]
[1746770650782,1.9219,162.88,162.79,29.68]
[1746770650983,6.1417,162.85,162.81,6.1427]
[1746770652187,6.1417,162.85,162.82,6.1426]
[1746770652485,36.1212,162.86,162.82,6.1426]
[1746770652686,29.98,162.86,162.79,29.68]
[1746770652989,29.98,162.86,162.83,6.1421]
[1746770653186,29.98,162.86,162.79,29.68]
[1746770653386,6.1416,162.85,162.79,29.68]
[1746770653890,6.1423,162.83,162.76,3.927]
[1746770654087,29.62,162.85,162.76,1.9128]
[1746770654587,6.142,162.84,162.76,1.9128]
[1746770654786,29.62,162.85,162.76,1.9128]
[1746770655389,35.7616,162.85,162.81,6.1428]
[1746770655793,35.7616,162.85,162.82,6.1426]
[1746770656191,29.62,162.85,162.82,6.1426]
[1746770656794,35.7616,162.85,162.81,6.1429]
[1746770656993,29.62,162.85,162.76,1.9128]
[1746770657493,6.1425,162.83,162.76,1.9128]
[1746770657888,6.1425,162.83,162.79,6.1435]
[1746770658102,29.62,162.85,162.74,29.98]
[1746770658996,6.1432,162.81,162.77,6.1444]
[1746770659397,29.98,162.82,162.77,6.1444]
[1746770659599,6.1432,162.81,162.77,6.1444]
[1746770661694,6.1432,162.81,162.78,6.1441]
[1746770661893,36.1227,162.82,162.74,29.98]
[1746770662301,36.1227,162.82,162.79,6.1436]
[1746770662497,36.1227,162.82,162.74,59.4]
[1746770662900,36.1227,162.82,162.78,6.1439]
[1746770663101,36.1227,162.82,162.74,59.4]
[1746770663600,6.1432,162.81,162.78,6.1439]
[1746770663800,29.98,162.82,162.78,6.1439]
[1746770664100,36.1228,162.82,162.78,6.1439]
[1746770665400,6.1431,162.81,162.78,6.1439]
[1746770666404,36.1227,162.82,162.79,6.1438]
[1746770667103,29.98,162.82,162.8,6.1433]
[1746770668706,36.1226,162.82,162.79,6.1436]
[1746770669105,29.98,162.82,162.79,6.1436]
[1746770669305,29.98,162.82,162.74,59.4]
[1746770669909,36.1228,162.82,162.74,59.4]
[1746770670509,36.1228,162.82,162.74,29.98]
[1746770670807,36.1228,162.82,162.74,59.26]
[1746770671111,29.98,162.82,162.78,6.1441]
[1746770672413,6.1435,162.8,162.74,59.26]
[1746770672711,29.98,162.82,162.74,59.26]
[1746770672907,6.1432,162.81,162.74,59.26]
[1746770673211,29.98,162.82,162.74,59.26]
[1746770673411,29.98,162.82,162.75,6.1453]
[1746770673614,31.182,162.81,162.75,6.1453]
[1746770673808,33.1841,162.81,162.75,6.1453]
[1746770674009,33.1841,162.81,162.74,6.1455]
[1746770674211,1.9571,162.8,162.74,6.1455]
[1746770674516,6.1444,162.78,162.74,6.1455]
[1746770674713,1.9571,162.8,162.74,6.1455]
[1746770675014,1.9571,162.8,162.75,6.1452]
[1746770675312,6.1445,162.78,162.75,6.1452]
[1746770675914,35.5445,162.78,162.75,6.1452]
[1746770676116,6.1446,162.77,162.74,6.1455]
[1746770677020,6.1446,162.77,162.75,1.0]
[1746770679014,6.1449,162.76,162.75,1.0]
[1746770679324,29.4,162.78,162.75,1.0]
[1746770680926,29.4,162.78,162.76,6.1445]
[1746770681323,29.4,162.78,162.75,1.0]
[1746770681626,29.4,162.78,162.76,6.1449]
[1746770681927,29.4,162.78,162.75,1.0]
[1746770683028,29.4,162.78,162.77,6.1445]
[1746770685034,29.4,162.78,162.76,6.1448]
[1746770686037,29.4,162.78,162.77,6.1445]
[1746770689939,31.382,162.81,162.8,6.1434]
[1746770690333,29.42,162.81,162.8,6.1434]
[1746770700449,29.42,162.81,162.79,6.1436]
[1746770705051,29.42,162.81,162.8,6.1434]
[1746770705648,8.1504,162.85,162.81,6.1427]
[1746770705855,28.78,162.84,162.76,34.67840124]
[1746770706354,28.78,162.84,162.83,6.1422]
[1746770708157,28.78,162.84,162.76,34.67840124]
[1746770708857,28.78,162.84,162.82,6.1426]
[1746770709156,28.78,162.84,162.76,34.67840124]
[1746770709559,28.78,162.84,162.83,6.1422]
[1746770710454,28.78,162.84,162.82,6.1425]
[1746770713654,34.9219,162.84,162.77,1.9186]
[1746770713958,28.78,162.84,162.75,29.78]
[1746770714160,28.48,162.83,162.75,1.0]
[1746770714355,6.1429,162.82,162.78,6.144]
[1746770715058,6.143,162.81,162.78,6.144]
[1746770715452,30.4296,162.83,162.78,6.144]
[1746770715659,28.48,162.83,162.75,29.46]
[1746770715855,28.78,162.84,162.76,6.11840124]
[1746770716157,28.78,162.84,162.76,36.95750124]
[1746770716555,28.78,162.87,162.79,6.11840124]
[1746770716857,28.78,162.87,162.79,34.57840124]
[1746770717261,28.78,162.87,162.85,6.1411]
[1746770718059,28.78,162.87,162.84,6.1417]
[1746770718261,28.78,162.87,162.79,34.57840124]
[1746770718761,6.1417,162.85,162.81,6.1427]
[1746770719060,6.1417,162.85,162.79,6.11840124]
[1746770719460,6.1413,162.86,162.82,6.1426]
[1746770719660,28.78,162.87,162.79,6.11840124]
[1746770720163,28.78,162.87,162.83,6.142]
[1746770720456,28.78,162.87,162.79,6.11840124]
[1746770720862,28.78,162.87,162.84,6.1416]
[1746770721256,28.78,162.87,162.79,6.11840124]
[1746770723364,28.78,162.87,162.84,6.1416]
[1746770723767,28.78,162.87,162.79,6.11840124]
[1746770724365,34.921,162.87,162.83,6.142]
[1746770724964,34.921,162.87,162.83,6.1421]
[1746770725160,34.921,162.87,162.79,34.35840124]
[1746770725359,6.1411,162.86,162.79,34.35840124]
[1746770725765,28.78,162.87,162.79,34.35840124]
[1746770726066,34.9208,162.87,162.79,34.35840124]
[1746770726259,34.9208,162.87,162.83,6.142]
[1746770728269,34.9208,162.87,162.84,6.1418]
[1746770728769,34.9208,162.87,162.79,34.35840124]
[1746770728973,6.1412,162.86,162.83,6.1421]
[1746770729164,28.78,162.87,162.79,34.35840124]
[1746770729365,34.9209,162.87,162.79,34.35840124]
[1746770730172,34.9209,162.87,162.84,6.1416]
[1746770730470,34.9209,162.87,162.79,34.35840124]
[1746770730772,34.9209,162.87,162.83,6.142]
[1746770730980,6.1412,162.86,162.83,6.142]
[1746770731268,28.78,162.87,162.83,6.142]
[1746770731473,34.9208,162.87,162.79,34.35840124]
[1746770731876,34.9208,162.87,162.83,6.142]
[1746770732375,28.78,162.87,162.81,6.1426]
[1746770732576,28.78,162.87,162.79,34.17840124]
[1746770733677,28.78,162.87,162.84,6.1416]
[1746770734679,34.9209,162.87,162.84,6.1416]
[1746770734878,28.78,162.87,162.84,6.1416]
[1746770735979,34.9208,162.87,162.84,6.1416]
[1746770745483,28.78,162.87,162.82,1.0]
[1746770745684,32.2407,162.9,162.82,1.0]
[1746770746087,6.1401,162.89,162.82,1.0]
[1746770746688,6.1401,162.89,162.85,6.1412]
[1746770751585,6.3897,162.9,162.87,6.1407]
[1746770751793,34.6497,162.9,162.87,6.1407]
[1746770756493,28.51,162.9,162.89,6.14]
[1746770756889,28.26,162.9,162.89,6.14]
[1746770757089,28.26,162.9,162.88,6.1402]
[1746770758891,28.26,162.9,162.89,6.14]
[1746770760398,28.26,162.9,162.88,6.1402]
[1746770760598,28.26,162.9,162.82,1.0]
[1746770760897,7.80736523,162.89,162.84,6.1416]
[1746770761094,6.1404,162.88,162.84,6.1416]
[1746770761294,35.34736523,162.89,162.82,1.0]
[1746770761496,35.34736523,162.89,162.83,6.1422]
[1746770761697,31.4379,162.89,162.83,6.1422]
[1746770761899,6.141,162.87,162.83,6.1422]
[1746770762095,27.6,162.86,162.82,7.1425]
[1746770762288,27.6,162.86,162.82,1.0]
[1746770762803,27.56,162.85,162.82,1.0]
[1746770763291,27.6,162.86,162.82,1.0]
[1746770763697,27.6,162.86,162.83,6.1419]
[1746770763901,27.6,162.86,162.82,1.0]
[1746770764197,35.7977,162.88,162.84,6.1416]
[1746770765100,6.1408,162.87,162.83,6.1421]
[1746770767799,6.1411,162.86,162.83,6.1421]
[1746770768399,6.1411,162.86,162.82,7.1426]
[1746770768700,6.1416,162.85,162.82,1.0]
[1746770768997,35.76990435,162.88,162.82,1.0]
[1746770770099,6.142,162.84,162.82,1.0]
[1746770770300,27.6,162.84,162.82,1.0]
[1746770770496,27.6,162.84,162.75,34.71260435]
[1746770770708,6.1432,162.81,162.75,56.12]
[1746770771005,2.0255,162.83,162.75,1.0]
[1746770771198,6.1437,162.8,162.75,1.0]
[1746770771399,33.7437,162.8,162.76,6.1448]
[1746770771607,27.6,162.8,162.75,1.0]
[1746770772005,27.6,162.8,162.78,6.1438]
[1746770772306,27.85,162.8,162.78,6.1438]
[1746770775608,0.25,162.8,162.79,6.1438]
[1746770776111,0.25,162.8,162.75,1.0]
[1746770776306,0.25,162.8,162.78,6.1439]
[1746770776507,0.25,162.8,162.75,1.0]
[1746770776810,0.25,162.8,162.78,6.1439]
[1746770778210,0.25,162.8,162.79,6.1438]
[1746770779610,0.25,162.8,162.78,6.144]
[1746770780206,0.25,162.8,162.79,6.1438]
[1746770786621,27.52,162.86,162.78,6.11260435]
[1746770786824,27.52,162.87,162.78,6.11260435]
[1746770787725,33.63260435,162.87,162.75,1.0]
[1746770787919,33.63260435,162.87,162.75,28.54]
[1746770788221,6.1433,162.81,162.77,6.1444]
[1746770788417,33.6633,162.81,162.77,6.1444]
[1746770788819,6.1437,162.8,162.76,6.1448]
[1746770789021,27.52,162.81,162.76,6.1448]
[1746770789221,6.1436,162.8,162.76,6.1448]
[1746770790224,6.1436,162.8,162.77,6.1445]
[1746770791226,6.1436,162.8,162.76,6.1448]
[1746770792020,27.52,162.81,162.75,7.1452]
[1746770793326,6.1441,162.79,162.75,7.1452]
[1746770793625,27.52,162.81,162.75,1.0]
[1746770794231,6.1446,162.77,162.75,1.0]
[1746770794526,27.52,162.81,162.75,7.1453]
[1746770795120,27.52,162.81,162.76,6.1449]
[1746770795331,27.52,162.81,162.75,1.0]
[1746770796329,6.1444,162.78,162.75,7.1451]
[1746770796827,6.1445,162.77,162.75,1.0]
[1746770801834,6.1445,162.77,162.75,2.0]
[1746770802835,6.1449,162.76,162.75,2.0]
[1746770803734,10.06241188,162.76,162.75,2.0]
[1746770805035,6.1458,162.74,162.71,6.1465]
[1746770807138,6.1461,162.73,162.7,6.147]
[1746770808437,6.1461,162.73,162.71,6.1468]
[1746770808735,6.1461,162.73,162.66,39.72505782]
[1746770810237,6.1461,162.73,162.66,12.18505782]
[1746770810537,6.1466,162.72,162.66,12.18505782]
[1746770810739,6.1466,162.72,162.68,6.1479]
[1746770811134,27.54,162.73,162.66,2.0748]
[1746770811334,27.54,162.72,162.65,6.1488]
[1746770812237,6.1478,162.69,162.65,6.1488]
[1746770812738,27.54,162.72,162.65,6.1488]
[1746770813235,6.148,162.68,162.64,6.1494]
[1746770814041,6.1484,162.67,162.64,6.1494]
[1746770814837,6.1484,162.67,162.63,6.1497]
[1746770815937,6.1484,162.67,162.64,6.1494]
[1746770819137,33.688,162.68,162.64,6.1494]
[1746770819442,33.688,162.68,162.65,6.1489]
[1746770820543,6.1484,162.67,162.61,2.0899]
[1746770820839,27.54,162.68,162.61,2.0899]
[1746770821240,27.54,162.68,162.65,6.1487]
[1746770822538,27.54,162.68,162.63,6.1498]
[1746770822742,27.54,162.68,162.61,29.6299]
[1746770823244,27.54,162.68,162.66,6.1483]
[1746770824242,27.54,162.68,162.65,6.149]
[1746770827050,33.688,162.68,162.65,6.149]
[1746770827251,33.688,162.68,162.64,6.1493]
[1746770829146,6.1483,162.67,162.64,6.1493]
[1746770829453,27.54,162.68,162.64,6.1493]
[1746770829649,27.54,162.68,162.65,6.149]
[1746770830551,33.6881,162.68,162.64,6.1493]
[1746770831356,27.54,162.68,162.65,6.149]
[1746770833657,27.54,162.68,162.66,6.1486]
[1746770835251,27.54,162.68,162.67,6.1483]
[1746770835451,27.54,162.71,162.66,3.91979448]
[1746770836159,27.54,162.71,162.68,6.1479]
[1746770836559,27.54,162.71,162.69,3.91979448]
[1746770836853,564.8058,162.74,162.7,6.1469]
[1746770838560,564.8058,162.74,162.71,6.1467]
[1746770838761,558.66,162.74,162.71,3.91979448]
[1746770838961,3.91979448,162.78,162.71,3.91979448]
[1746770838962,27.54,162.76,162.71,3.91979448]
[1746770839259,27.54,162.76,162.73,3.91979448]
[1746770839557,55.08,162.79,162.73,3.91979448]
[1746770839758,61.2239,162.79,162.75,6.1449]
[1746770840755,6.1442,162.78,162.7,6.11739624]
[1746770840953,27.54,162.79,162.7,6.11739624]
[1746770841148,27.54,162.79,162.69,1.9809]
[1746770841354,6.1452,162.76,162.69,1.9809]
[1746770842058,6.1452,162.76,162.72,6.1463]
[1746770843759,6.1453,162.75,162.71,6.1467]
[1746770844559,6.145,162.76,162.72,6.1463]
[1746770845459,6.1454,162.75,162.72,6.1463]
[1746770845661,2.0997,162.78,162.68,55.08]
[1746770845958,6.1455,162.75,162.68,55.08]
[1746770846158,27.52,162.75,162.68,55.08]
[1746770846556,27.52,162.78,162.75,6.1451]
[1746770847160,27.52,162.78,162.76,6.1448]
[1746770847366,27.52,162.78,162.72,27.52]
[1746770847561,27.52,162.81,162.72,55.04]
[1746770848261,27.52,162.81,162.71,27.52]
[1746770848463,27.52,162.8,162.71,27.52]
[1746770848656,6.1444,162.78,162.74,6.1456]
[1746770849961,6.1445,162.77,162.74,6.1456]
[1746770850362,6.1443,162.78,162.74,6.1456]
[1746770850660,27.52,162.8,162.75,6.1451]
[1746770850860,6.1444,162.78,162.71,27.52]
[1746770851062,27.52,162.8,162.71,27.52]
[1746770851360,27.52,162.8,162.73,6.1456]
[1746770851963,6.1445,162.78,162.73,6.1456]
[1746770852160,27.52,162.8,162.73,6.1456]
[1746770852366,6.1452,162.76,162.72,6.1463]
[1746770852560,27.52,162.8,162.69,1.9352]
[1746770852865,6.1446,162.77,162.73,6.1457]
[1746770853266,6.1446,162.77,162.69,1.9352]
[1746770853461,6.1443,162.78,162.74,6.1454]
[1746770853964,27.52,162.81,162.71,33.63739624]
[1746770854166,27.52,162.81,162.77,6.1444]
[1746770854568,33.6633,162.81,162.77,6.1444]
[1746770856567,6.1435,162.8,162.77,6.1444]
[1746770856768,27.52,162.81,162.71,35.61129624]
[1746770857968,6.1443,162.78,162.75,6.1452]
[1746770859070,27.52,162.81,162.71,35.61129624]
[1746770859473,6.1438,162.79,162.75,6.145]
[1746770860569,6.1438,162.79,162.76,6.1449]
[1746770861872,6.1435,162.8,162.76,6.1449]
[1746770862064,6.1435,162.8,162.71,35.61129624]
[1746770862369,55.04,162.81,162.71,35.61129624]
[1746770862575,55.04,162.81,162.76,6.1447]
[1746770862967,6.1436,162.8,162.71,35.61129624]
[1746770863471,27.52,162.81,162.71,35.61129624]
[1746770863672,27.52,162.81,162.78,6.1439]
[1746770864472,27.52,162.81,162.75,27.5]
[1746770865576,27.52,162.81,162.78,6.1441]
[1746770866876,33.663,162.81,162.77,6.1443]
[1746770868780,33.663,162.81,162.78,6.1441]
[1746770868971,6.1434,162.8,162.75,27.5]
[1746770869879,6.1434,162.8,162.74,27.5]
[1746770869880,27.52,162.81,162.74,27.5]
[1746770870074,27.52,162.81,162.71,1.0]
[1746770870677,6.1441,162.78,162.74,6.1454]
[1746770870975,27.52,162.81,162.74,6.1454]
[1746770872079,6.1444,162.78,162.74,6.1454]
[1746770872479,27.52,162.81,162.71,1.0]
[1746770872780,33.6632,162.81,162.71,1.0]
[1746770872978,33.6632,162.81,162.72,27.5]
[1746770873278,27.52,162.81,162.79,6.1437]
[1746770873877,27.52,162.81,162.72,27.5]
[1746770874578,33.663,162.81,162.72,27.5]
[1746770875080,33.663,162.81,162.77,6.1443]
[1746770875283,27.52,162.81,162.72,27.5]
[1746770875580,27.52,162.81,162.71,1.0]
[1746770875881,6.1452,162.76,162.73,6.1458]
[1746770876182,33.6452,162.76,162.73,6.1458]
[1746770878783,6.1454,162.75,162.72,6.1463]
[1746770879285,27.5,162.76,162.71,1.0]
[1746770879480,33.645,162.76,162.73,6.1458]
[1746770879782,27.5,162.76,162.73,6.1458]
[1746770879978,27.5,162.76,162.71,1.0]
[1746770880479,6.1453,162.75,162.72,6.1463]
[1746770880882,33.645,162.76,162.73,6.146]
[1746770881285,27.5,162.76,162.71,1.0]
[1746770882082,6.1441,162.79,162.71,1.0]
[1746770882279,27.5,162.8,162.71,28.5]
[1746770882785,27.5,162.8,162.77,6.1443]
[1746770883185,27.5,162.8,162.71,28.5]
[1746770883882,27.5,162.8,162.78,6.1439]
[1746770885178,27.5,162.8,162.77,6.1444]
[1746770885384,27.5,162.8,162.73,27.5]
[1746770885688,6.1439,162.79,162.75,6.1449]
[1746770885883,6.1439,162.79,162.71,28.5]
[1746770887188,6.1439,162.79,162.71,1.0]
[1746770887487,27.5,162.8,162.71,1.0]
[1746770887787,5.993,162.78,162.71,1.0]
[1746770887988,33.6447,162.77,162.73,6.1458]
[1746770888286,27.5,162.76,162.73,6.1458]
[1746770888488,27.5,162.76,162.73,6.1459]
[1746770889384,27.5,162.76,162.71,7.1465]
[1746770889887,6.1455,162.75,162.71,7.1465]
[1746770890791,6.1457,162.74,162.71,1.0]
[1746770891989,6.1457,162.74,162.71,7.1467]
[1746770892285,6.1461,162.73,162.71,1.0]
[1746770894681,6.1464,162.72,162.71,1.0]
[1746770894882,27.5,162.76,162.71,1.0]
[1746770895187,6.1462,162.73,162.71,1.0]
[1746770895785,6.1457,162.74,162.71,1.0]
[1746770896192,6.1457,162.74,162.71,7.1467]
[1746770896691,6.1454,162.75,162.72,6.1462]
[1746770897387,33.645,162.76,162.73,6.146]
[1746770897586,27.5,162.76,162.71,1.0]
[1746770897982,2.0685,162.78,162.71,1.0]
[1746770898485,27.5,162.79,162.71,1.0]
[1746770898678,27.5,162.79,162.71,2.9172]
[1746770898883,27.5,162.79,162.73,6.11739624]
[1746770900792,27.5,162.79,162.77,6.1443]
[1746770901294,27.5,162.79,162.73,6.11739624]
[1746770901993,27.5,162.79,162.77,6.1444]
[1746770902994,27.5,162.79,162.73,6.11739624]
[1746770903189,27.5,162.79,162.71,2.9172]
[1746770903389,33.644,162.79,162.71,2.9172]
[1746770904489,33.644,162.79,162.71,30.4172]
[1746770904790,33.644,162.79,162.76,6.1449]
[1746770904985,27.5,162.79,162.76,6.1449]
[1746770905694,33.6438,162.79,162.76,6.1449]
[1746770906795,27.5,162.79,162.76,6.1449]
[1746770907092,27.5,162.79,162.71,30.4172]
[1746770907093,27.5,162.79,162.77,6.1445]
[1746770907694,27.5,162.79,162.76,6.1447]
[1746770909792,33.6439,162.79,162.76,6.1447]
[1746770911902,27.5,162.79,162.76,6.1447]
[1746770912602,27.5,162.79,162.71,30.4172]
[1746770913003,27.5,162.79,162.77,6.1442]
[1746770913704,27.5,162.79,162.71,30.4172]
[1746770914111,6.1442,162.78,162.74,6.1453]
[1746770914405,6.1442,162.78,162.71,30.4172]
[1746770914604,6.1442,162.78,162.74,6.1454]
[1746770914807,33.6439,162.79,162.71,30.4172]
[1746770915105,27.5,162.79,162.76,6.1446]
[1746770915811,27.5,162.79,162.75,6.1451]
[1746770916011,33.6438,162.79,162.75,6.1451]
[1746770916414,27.5,162.79,162.73,6.1459]
[1746770916616,27.5,162.79,162.71,30.3972]
[1746770917117,29.5417,162.82,162.73,6.11739624]
[1746770917319,29.5417,162.82,162.73,33.59739624]
[1746770919822,29.5417,162.82,162.73,27.48]
[1746770920121,29.5417,162.82,162.71,2.9172]
[1746770920320,29.5417,162.82,162.74,6.1453]
[1746770920821,6.1441,162.79,162.75,6.1453]
[1746770921023,27.48,162.78,162.75,6.1453]
[1746770921417,33.6242,162.78,162.75,6.1453]
[1746770921626,33.6242,162.78,162.74,6.1455]
[1746770922523,6.144,162.79,162.75,6.1451]
[1746770922822,27.48,162.8,162.71,2.9172]
[1746770923023,6.1439,162.79,162.75,6.145]
[1746770924924,6.1439,162.79,162.76,6.1448]
[1746770925124,6.1441,162.78,162.71,2.9172]
[1746770925423,6.1441,162.78,162.75,6.145]
[1746770926425,6.1441,162.78,162.75,7.145]
[1746770926722,6.1439,162.79,162.76,6.1448]
[1746770928319,33.6234,162.8,162.77,6.1445]
[1746770928524,27.48,162.8,162.75,1.0]
[1746770928826,27.48,162.8,162.78,6.144]
[1746770929825,27.48,162.8,162.79,6.1438]
[1746770930625,27.48,162.8,162.78,6.144]
[1746770931724,27.48,162.8,162.79,6.1438]
[1746770932128,27.48,162.8,162.75,1.0]
[1746770932724,27.48,162.8,162.78,6.144]
[1746770937732,27.48,162.8,162.77,6.1445]
[1746770937932,33.6237,162.8,162.75,1.0]
[1746770938135,27.48,162.8,162.75,1.0]
[1746770938437,27.46,162.79,162.75,1.0]
[1746770939630,6.1442,162.78,162.75,7.1453]
[1746770940532,6.1445,162.77,162.75,7.1453]
[1746770941134,6.1445,162.77,162.75,1.0]
[1746770941335,6.1449,162.76,162.75,1.0]
[1746770941536,33.5849,162.76,162.75,1.0]
[1746770942732,6.1457,162.74,162.71,1.0]